bitfinex/quotes_BTCUSD_20220109
["timestamp","ask_amount","ask_price","bid_price","bid_amount"]
[1641731696220,0.07388283,41764.0,41757.0,0.30116367]
[1641731696620,0.07388283,41764.0,41760.0,0.059882]
[1641731696821,0.07388283,41764.0,41758.0,0.119758]
[1641731697021,0.07388283,41764.0,41760.0,0.059881]
[1641731697421,0.68533412,41764.0,41760.0,0.059881]
[1641731697620,0.68533412,41764.0,41761.0,0.059879]
[1641731697820,0.32836281,41762.0,41758.0,0.119758]
[1641731698025,0.32836281,41762.0,41757.0,0.07]
[1641731698026,0.39858914,41761.0,41757.0,0.07]
[1641731698221,0.059892,41761.0,41757.0,0.07]
[1641731698621,0.67134329,41761.0,41757.0,0.07]
[1641731698822,0.67134329,41761.0,41755.0,0.18362078]
[1641731699024,0.61645129,41761.0,41760.0,0.00067185]
[1641731699222,1.58558341,41761.0,41760.0,0.00067185]
[1641731699427,0.97413212,41761.0,41760.0,0.00067185]
[1641731699670,1.68749195,41761.0,41760.0,0.00067185]
[1641731700274,1.16372131,41761.0,41760.0,0.00067185]
[1641731700472,1.51855503,41761.0,41760.0,0.00041537]
[1641731701073,1.52855503,41761.0,41760.0,0.01041537]
[1641731702171,1.51855503,41761.0,41760.0,0.00041537]
[1641731702573,1.06855503,41761.0,41760.0,0.00041537]
[1641731702971,1.08755503,41761.0,41760.0,0.00041537]
[1641731704213,1.08755503,41761.0,41760.0,0.00027332]
[1641731704414,1.06855503,41761.0,41760.0,0.00027332]
[1641731704814,0.60931691,41761.0,41760.0,0.00027332]
[1641731705015,0.62031691,41761.0,41760.0,0.00027332]
[1641731705620,0.56042291,41761.0,41760.0,0.00027332]
[1641731705817,1.07921335,41761.0,41760.0,0.00027332]
[1641731706218,2.06821335,41761.0,41760.0,0.00027332]
[1641731706919,1.36383372,41761.0,41760.0,0.00027332]
[1641731708367,1.35483372,41761.0,41760.0,0.00027332]
[1641731708968,1.35583372,41761.0,41760.0,0.00046674]
[1641731710369,1.35483372,41761.0,41760.0,0.00046674]
[1641731710569,1.35483372,41761.0,41760.0,0.0003072]
[1641731711017,1.35983372,41761.0,41760.0,0.0003072]
[1641731711617,1.41972772,41761.0,41760.0,0.0003072]
[1641731712319,1.41472772,41761.0,41760.0,0.0003072]
[1641731712917,1.42372772,41761.0,41760.0,0.0003072]
[1641731714118,1.42372772,41761.0,41760.0,0.00027332]
[1641731714317,1.41472772,41761.0,41760.0,0.00027332]
[1641731714564,2.12810735,41761.0,41760.0,0.00027332]
[1641731714970,2.13810735,41761.0,41760.0,0.00027332]
[1641731715165,1.42472772,41761.0,41760.0,0.00027332]
[1641731715367,1.53259574,41761.0,41760.0,0.00027332]
[1641731716367,1.52259574,41761.0,41760.0,0.00027332]
[1641731716967,1.53459574,41761.0,41760.0,0.00027332]
[1641731717367,1.53459574,41761.0,41760.0,0.00016079]
[1641731718421,1.52259574,41761.0,41760.0,0.00016079]
[1641731718822,1.78338247,41761.0,41760.0,0.00016079]
[1641731719026,1.89338247,41761.0,41760.0,0.00016079]
[1641731719222,1.89338247,41761.0,41760.0,0.00040998]
[1641731720022,2.0156555,41761.0,41760.0,0.00040998]
[1641731720225,1.9556555,41761.0,41760.0,0.00040998]
[1641731720522,1.69486877,41761.0,41760.0,0.00040998]
[1641731720723,0.059906,41756.0,41755.0,0.14446987]
[1641731720923,0.7976293,41756.0,41755.0,0.14446987]
[1641731721122,0.8976293,41756.0,41755.0,0.14446987]
[1641731723067,0.9126293,41756.0,41755.0,0.14446987]
[1641731723671,1.9126293,41756.0,41755.0,0.14446987]
[1641731723869,1.8126293,41756.0,41755.0,0.14446987]
[1641731724270,1.7976293,41756.0,41755.0,0.14446987]
[1641731725073,1.8136293,41756.0,41755.0,0.14446987]
[1641731726322,1.7976293,41756.0,41755.0,0.14446987]
[1641731727122,1.8136293,41756.0,41755.0,0.14446987]
[1641731727722,1.7537233,41756.0,41755.0,0.14446987]
[1641731727924,1.44926521,41756.0,41755.0,0.14446987]
[1641731728125,1.016,41756.0,41755.0,0.14446987]
[1641731728422,1.0,41756.0,41755.0,0.14446987]
[1641731729023,1.01,41756.0,41755.0,0.14446987]
[1641731730367,1.0,41756.0,41755.0,0.14446987]
[1641731731066,1.012,41756.0,41755.0,0.15246987]
[1641731732269,1.0,41756.0,41755.0,0.14446987]
[1641731733068,1.015,41756.0,41755.0,0.15046987]
[1641731734320,1.31328707,41756.0,41755.0,0.14446987]
[1641731734520,1.0,41756.0,41755.0,0.14446987]
[1641731735021,1.015,41756.0,41755.0,0.15046987]
[1641731736222,1.0,41756.0,41755.0,0.14446987]
[1641731737172,1.011,41756.0,41755.0,0.15246987]
[1641731738477,1.0,41756.0,41755.0,0.14446987]
[1641731738875,1.05098854,41756.0,41755.0,0.14446987]
[1641731739074,1.06398854,41756.0,41755.0,0.15146987]
[1641731740820,1.06398854,41756.0,41755.0,0.14446987]
[1641731741023,1.06598854,41756.0,41755.0,0.15046987]
[1641731742422,1.05098854,41756.0,41755.0,0.14446987]
[1641731743023,1.06498854,41756.0,41755.0,0.15046987]
[1641731744426,1.05098854,41756.0,41755.0,0.14446987]
[1641731745071,1.06598854,41756.0,41755.0,0.15046987]
[1641731746573,1.05098854,41756.0,41755.0,0.14446987]
[1641731747172,1.05098854,41756.0,41755.0,0.15046987]
[1641731747173,1.06898854,41756.0,41755.0,0.15046987]
[1641731748416,1.05098854,41756.0,41755.0,0.14446987]
[1641731749217,1.07143627,41756.0,41755.0,0.14446987]
[1641731750418,1.04843627,41756.0,41755.0,0.14446987]
[1641731751219,1.06943627,41756.0,41755.0,0.14446987]
[1641731752477,1.04843627,41756.0,41755.0,0.14446987]
[1641731753079,1.06443627,41756.0,41755.0,0.14446987]
[1641731754478,1.16443627,41756.0,41755.0,0.14446987]
[1641731755178,1.15543627,41756.0,41755.0,0.15346987]
[1641731755379,1.15543627,41756.0,41755.0,0.13037947]
[1641731755579,1.15543627,41756.0,41755.0,0.08537947]
[1641731756523,1.14843627,41756.0,41755.0,0.07637947]
[1641731756726,1.04843627,41756.0,41755.0,0.07637947]
[1641731757124,1.10543627,41756.0,41755.0,0.07637947]
[1641731758526,1.04843627,41756.0,41755.0,0.07637947]
[1641731759230,1.11143627,41756.0,41755.0,0.07637947]
[1641731760272,1.04843627,41756.0,41755.0,0.07637947]
[1641731761069,1.06343627,41756.0,41755.0,0.07637947]
[1641731762472,1.04843627,41756.0,41755.0,0.07637947]
[1641731763073,1.07543627,41756.0,41755.0,0.07637947]
[1641731763816,1.07543627,41756.0,41755.0,0.07324947]
[1641731764419,1.04843627,41756.0,41755.0,0.07324947]
[1641731765118,1.06443627,41756.0,41755.0,0.07324947]
[1641731766419,1.04843627,41756.0,41755.0,0.07324947]
[1641731767069,1.06143627,41756.0,41755.0,0.07324947]
[1641731767671,1.88376547,41756.0,41755.0,0.03919832]
[1641731767872,1.88376547,41756.0,41750.0,0.0005806]
[1641731767873,1.0,41755.0,41750.0,0.0005806]
[1641731768072,0.00123898,41751.0,41750.0,0.0005806]
[1641731768471,0.71115698,41751.0,41750.0,0.0005806]
[1641731768871,3.38024864,41751.0,41750.0,0.0005806]
[1641731769174,1.84254611,41751.0,41750.0,0.0005806]
[1641731769372,1.84254611,41751.0,41750.0,0.00045945]
[1641731769577,1.19254611,41751.0,41750.0,0.00045945]
[1641731769775,0.37797361,41751.0,41750.0,0.00045945]
[1641731770172,0.79642762,41751.0,41750.0,0.00045945]
[1641731770375,0.78742762,41751.0,41750.0,0.00045945]
[1641731771321,0.79642762,41751.0,41750.0,0.00045945]
[1641731772320,0.78742762,41751.0,41750.0,0.00045945]
[1641731773124,0.79742762,41751.0,41750.0,0.00045945]
[1641731774225,0.79742762,41751.0,41750.0,0.00115094]
[1641731774421,0.11214552,41751.0,41750.0,0.00115094]
[1641731774672,0.05098854,41751.0,41750.0,0.00115094]
[1641731775066,0.06298854,41751.0,41750.0,0.00115094]
[1641731775568,0.012,41751.0,41750.0,0.00115094]
[1641731776371,0.71148831,41751.0,41750.0,0.00115094]
[1641731777171,0.61694822,41751.0,41750.0,0.00115094]
[1641731777771,0.007,41751.0,41750.0,0.00115094]
[1641731778421,0.60994822,41752.0,41750.0,0.00115094]
[1641731778822,0.71148831,41753.0,41750.0,0.00115094]
[1641731779023,0.71148831,41752.0,41750.0,0.00115094]
[1641731779222,0.71748831,41752.0,41750.0,0.00115094]
[1641731779524,0.71748831,41752.0,41748.0,0.3738698]
[1641731780325,0.6091968,41751.0,41748.0,0.3738698]
[1641731780527,0.6091968,41751.0,41748.0,0.37347445]
[1641731780728,0.6091968,41751.0,41748.0,0.37387026]
[1641731780926,0.50727161,41750.0,41748.0,0.37387026]
[1641731781526,0.6091968,41752.0,41749.0,0.059904]
[1641731781928,0.6091968,41752.0,41749.0,0.258094]
[1641731782176,0.6091968,41752.0,41751.0,0.00129585]
[1641731782379,0.16494611,41760.0,41751.0,0.00129585]
[1641731782677,0.33788075,41772.0,41766.0,1.41554144]
[1641731782678,1.25462472,41772.0,41766.0,1.41554144]
[1641731782878,1.25462472,41772.0,41767.0,0.219075]
[1641731783075,1.25462472,41772.0,41770.0,0.0012766]
[1641731783277,1.25462472,41772.0,41770.0,0.06113859]
[1641731783476,1.25462472,41772.0,41771.0,0.00120219]
[1641731783976,1.25462472,41772.0,41771.0,1.60597267]
[1641731784278,1.25462472,41772.0,41771.0,2.04162067]
[1641731784675,1.25462472,41772.0,41771.0,1.49162067]
[1641731784877,1.25462472,41772.0,41771.0,1.09083771]
[1641731785076,1.25462472,41772.0,41771.0,1.12183771]
[1641731785077,0.33788075,41772.0,41771.0,1.12183771]
[1641731785274,0.33788075,41772.0,41771.0,1.44893674]
[1641731786124,0.33831076,41772.0,41771.0,1.72756368]
[1641731786323,0.33831076,41772.0,41771.0,1.69656368]
[1641731787125,0.33788075,41772.0,41771.0,1.72656368]
[1641731787324,0.33831076,41772.0,41771.0,1.72656368]
[1641731787526,0.33831076,41772.0,41771.0,1.82656368]
[1641731788324,0.33831076,41772.0,41771.0,0.80228737]
[1641731789125,0.33831076,41772.0,41771.0,0.82188043]
[1641731789426,0.33830619,41772.0,41771.0,0.82188043]
[1641731790076,0.33830619,41772.0,41771.0,1.19636443]
[1641731790275,0.33830619,41772.0,41771.0,1.24636443]
[1641731790477,0.33788075,41772.0,41771.0,1.22736443]
[1641731790677,0.33830144,41772.0,41771.0,1.22736443]
[1641731791177,0.33830144,41772.0,41771.0,1.27236443]
[1641731791576,0.33830144,41772.0,41771.0,0.94788043]
[1641731791577,0.32788075,41772.0,41771.0,0.94788043]
[1641731791775,0.32830144,41772.0,41771.0,1.26507008]
[1641731792378,0.32830144,41772.0,41771.0,1.22007008]
[1641731792977,0.31830144,41772.0,41771.0,1.22007008]
[1641731793178,0.31830144,41772.0,41771.0,1.16207008]
[1641731793628,0.31830144,41772.0,41771.0,0.84488043]
[1641731793829,0.31830154,41772.0,41771.0,0.84488043]
[1641731794429,0.31830154,41772.0,41771.0,0.80288043]
[1641731794828,0.31788075,41772.0,41771.0,0.80288043]
[1641731795027,0.31830159,41772.0,41771.0,0.80288043]
[1641731795928,0.31788075,41772.0,41771.0,0.80288043]
[1641731796128,0.31830159,41772.0,41771.0,0.80288043]
[1641731797969,0.31830159,41772.0,41771.0,1.21984758]
[1641731798170,0.31788075,41772.0,41771.0,1.21984758]
[1641731798373,0.31830159,41772.0,41771.0,1.21984758]
[1641731798871,0.01,41782.0,41773.0,0.49777409]
[1641731799073,0.01,41782.0,41781.0,0.43128028]
[1641731801123,0.01,41782.0,41781.0,0.48428028]
[1641731802525,0.01,41782.0,41781.0,0.43128028]
[1641731803327,0.01,41782.0,41781.0,0.46128028]
[1641731803827,0.01042996,41782.0,41781.0,0.46128028]
[1641731804026,0.01042996,41782.0,41781.0,0.46186221]
[1641731804869,0.00961877,41782.0,41781.0,0.46186221]
[1641731805068,0.00961877,41782.0,41781.0,0.43186221]
[1641731805371,0.00961877,41782.0,41781.0,0.44686221]
[1641731805769,0.00961877,41782.0,41781.0,0.07543793]
[1641731805967,0.00961877,41782.0,41781.0,0.01558193]
[1641731806567,0.00961877,41782.0,41781.0,0.00058193]
[1641731806971,0.00918881,41782.0,41781.0,0.00058193]
[1641731807169,0.00961418,41782.0,41781.0,0.00058193]
[1641731807368,0.00961418,41782.0,41781.0,0.01758193]
[1641731808069,0.00918881,41782.0,41781.0,0.01758193]
[1641731808319,0.00960943,41782.0,41781.0,0.01758193]
[1641731808716,0.00960943,41782.0,41781.0,0.38104191]
[1641731809117,0.00918881,41782.0,41781.0,0.38104191]
[1641731809318,0.00960948,41782.0,41781.0,0.39504191]
[1641731810018,0.00520948,41782.0,41781.0,0.39504191]
[1641731810219,0.00478881,41782.0,41781.0,0.39504191]
[1641731810422,0.00520948,41782.0,41781.0,0.39504191]
[1641731810619,0.00520948,41782.0,41781.0,0.01458193]
[1641731811018,0.00520948,41782.0,41781.0,0.00058193]
[1641731811221,0.00920948,41782.0,41781.0,0.02158193]
[1641731811419,0.00920958,41782.0,41781.0,0.02158193]
[1641731812474,0.00478881,41782.0,41781.0,0.00058193]
[1641731812673,0.00520958,41782.0,41781.0,0.00058193]
[1641731812872,0.78110945,41782.0,41781.0,0.00058193]
[1641731813272,0.79110945,41782.0,41781.0,0.02358193]
[1641731814576,0.78110945,41782.0,41781.0,0.00058193]
[1641731814973,0.28110945,41782.0,41781.0,0.00058193]
[1641731815474,0.30210945,41782.0,41781.0,0.00058193]
[1641731815821,0.02620958,41782.0,41781.0,0.00058193]
[1641731816522,0.00520958,41782.0,41781.0,0.00058193]
[1641731816923,0.30478881,41782.0,41781.0,0.00058193]
[1641731817121,0.30520958,41782.0,41781.0,0.00058193]
[1641731817422,0.32420958,41782.0,41781.0,0.00058193]
[1641731818023,0.02420958,41782.0,41781.0,0.00058193]
[1641731818421,0.00520958,41782.0,41781.0,0.00058193]
[1641731819122,0.00520958,41782.0,41781.0,0.00067796]
[1641731819123,0.00478881,41782.0,41781.0,0.00067796]
[1641731819323,0.05720958,41782.0,41781.0,0.00067796]
[1641731820170,0.05678881,41782.0,41781.0,0.00067796]
[1641731820370,0.05720958,41782.0,41781.0,0.00067796]
[1641731820569,0.00520958,41782.0,41781.0,0.00067796]
[1641731820770,0.50520958,41782.0,41781.0,0.00067796]
[1641731821372,0.52720958,41782.0,41781.0,0.00067796]
[1641731822373,0.52678881,41782.0,41781.0,0.00067796]
[1641731822573,0.50520958,41782.0,41781.0,0.00067796]
[1641731823321,0.52320958,41782.0,41781.0,0.00067796]
[1641731823521,0.52278881,41782.0,41781.0,0.00067796]
[1641731823723,0.02342077,41782.0,41781.0,0.00067796]
[1641731824122,0.02342077,41782.0,41781.0,0.00058362]
[1641731824625,0.059869,41783.0,41781.0,0.00058362]
[1641731824824,0.32263185,41782.0,41781.0,0.00058362]
[1641731825423,0.60443759,41782.0,41781.0,0.00058362]
[1641731825624,0.32221108,41782.0,41781.0,0.00058362]
[1641731825823,0.32263185,41782.0,41781.0,0.00058362]
[1641731826825,0.32221108,41782.0,41781.0,0.00058362]
[1641731827079,0.32263185,41782.0,41781.0,0.00058362]
[1641731827273,0.33863185,41782.0,41781.0,0.00058362]
[1641731827874,0.33821108,41782.0,41781.0,0.00058362]
[1641731828072,0.33863185,41782.0,41781.0,0.00058362]
[1641731828474,0.32263185,41782.0,41781.0,0.00058362]
[1641731829275,0.34363185,41782.0,41781.0,0.00058362]
[1641731830075,0.34321108,41782.0,41781.0,0.00058362]
[1641731830275,0.34363185,41782.0,41781.0,0.00058362]
[1641731830675,0.64623529,41782.0,41781.0,0.00058362]
[1641731831130,0.64623529,41782.0,41776.0,0.05638759]
[1641731831327,0.67323529,41782.0,41773.0,0.00129155]
[1641731831530,0.67323529,41782.0,41772.0,0.119735]
[1641731831727,0.67323529,41782.0,41768.0,0.420443]
[1641731831928,0.67323529,41782.0,41768.0,0.3007]
[1641731832130,0.42323529,41782.0,41775.0,0.059869]
[1641731832328,0.42281452,41782.0,41775.0,0.059869]
[1641731832529,0.00042079,41777.0,41775.0,0.119733]
[1641731833328,0.00242079,41777.0,41775.0,0.133733]
[1641731834028,0.00242079,41777.0,41776.0,0.06046146]
[1641731834676,0.00042079,41777.0,41776.0,0.06046146]
[1641731835479,0.00842079,41777.0,41776.0,0.06846146]
[1641731835679,0.008,41777.0,41776.0,0.06846146]
[1641731835881,0.00842079,41777.0,41776.0,0.06846146]
[1641731836680,0.81560046,41781.0,41776.0,0.06046146]
[1641731836886,1.07221108,41782.0,41777.0,0.11972701]
[1641731837082,1.07221108,41782.0,41779.0,0.059861]
[1641731837283,0.008,41781.0,41779.0,0.059861]
[1641731837482,0.008,41781.0,41776.0,0.13131946]
[1641731837682,0.34489908,41781.0,41776.0,0.01159746]
[1641731837882,0.00042131,41779.0,41776.0,0.01159746]
[1641731838083,0.00042131,41779.0,41778.0,0.059866]
[1641731838924,1.07221108,41782.0,41778.0,0.059866]
[1641731839122,0.00042078,41779.0,41778.0,0.11434636]
[1641731839322,0.01042078,41779.0,41778.0,0.12334636]
[1641731839721,0.01042078,41779.0,41778.0,0.00959523]
[1641731840925,0.00042078,41779.0,41778.0,0.00059523]
[1641731841123,1.07221108,41782.0,41778.0,0.00059523]
[1641731841326,0.01142078,41779.0,41778.0,0.12931323]
[1641731841924,0.01142078,41779.0,41778.0,0.13055636]
[1641731842179,0.011,41779.0,41778.0,0.13055636]
[1641731842377,0.01142078,41779.0,41778.0,0.13055636]
[1641731842578,0.00042078,41779.0,41778.0,0.12155636]
[1641731842977,0.00042078,41779.0,41778.0,0.22155636]
[1641731843376,0.00242078,41779.0,41778.0,0.23255636]
[1641731843777,1.00242078,41779.0,41778.0,0.23255636]
[1641731844377,1.002,41779.0,41778.0,0.13255636]
[1641731844579,1.00042078,41779.0,41778.0,0.12155636]
[1641731845378,1.00342078,41779.0,41778.0,0.14155636]
[1641731845579,1.00342078,41779.0,41778.0,0.44155636]
[1641731845824,1.00342078,41779.0,41778.0,0.14155636]
[1641731846023,1.00342078,41779.0,41778.0,0.14031323]
[1641731846727,1.00042078,41779.0,41778.0,0.12031323]
[1641731847325,1.00042078,41779.0,41778.0,0.14231323]
[1641731847723,1.0,41779.0,41778.0,0.14231323]
[1641731847924,1.00042078,41779.0,41778.0,0.14231323]
[1641731848527,1.00042078,41779.0,41778.0,0.42031323]
[1641731849126,1.00042078,41779.0,41778.0,0.4205578]
[1641731849327,1.00042078,41779.0,41778.0,0.4465578]
[1641731849974,1.0,41779.0,41778.0,0.4465578]
[1641731850273,1.00042078,41779.0,41778.0,0.4465578]
[1641731850672,1.00042078,41779.0,41778.0,0.4205578]
[1641731851073,1.00042078,41779.0,41778.0,0.70062038]
[1641731851273,1.00042078,41779.0,41778.0,0.79305038]
[1641731851474,1.00042078,41779.0,41778.0,0.9336358]
[1641731852073,1.0,41779.0,41778.0,0.9336358]
[1641731852272,1.00042078,41779.0,41778.0,1.20217906]
[1641731852674,1.00042078,41779.0,41778.0,1.16717906]
[1641731853326,1.00042078,41779.0,41778.0,1.33817906]
[1641731853527,1.00042078,41779.0,41778.0,1.38817906]
[1641731854229,1.00042078,41779.0,41778.0,1.38847888]
[1641731854629,1.00042078,41779.0,41778.0,1.36747888]
[1641731855429,1.0,41779.0,41778.0,1.38947888]
[1641731855628,1.00042078,41779.0,41778.0,1.38947888]
[1641731856631,1.00042078,41779.0,41778.0,1.09893562]
[1641731857278,1.00042078,41779.0,41778.0,1.12193562]
[1641731857684,1.0,41779.0,41778.0,1.12193562]
[1641731857879,1.00042078,41779.0,41778.0,1.43607792]
[1641731858679,1.00042078,41779.0,41778.0,1.41307792]
[1641731858879,0.18448298,41779.0,41778.0,1.41307792]
[1641731859080,0.18448298,41779.0,41778.0,1.41437546]
[1641731859480,0.18448298,41779.0,41778.0,1.44137546]
[1641731859879,0.1840622,41779.0,41778.0,1.44137546]
[1641731860080,0.18448298,41779.0,41778.0,1.14137546]
[1641731860682,0.18448298,41779.0,41778.0,1.11437546]
[1641731860926,0.1840622,41779.0,41778.0,0.80023316]
[1641731861127,0.18448298,41779.0,41778.0,0.70780316]
[1641731861328,0.18448298,41779.0,41778.0,0.72880316]
[1641731861531,0.18448298,41779.0,41778.0,0.62880316]
[1641731861830,0.18448298,41779.0,41778.0,0.52880316]
[1641731862031,0.1840622,41779.0,41778.0,0.52750562]
[1641731862331,0.18448298,41779.0,41778.0,0.52750562]
[1641731862729,0.18448298,41779.0,41778.0,0.50650562]
[1641731863132,0.1840622,41779.0,41778.0,0.50650562]
[1641731863329,0.18448298,41779.0,41778.0,0.52650562]
[1641731863529,0.18448298,41779.0,41778.0,0.57650562]
[1641731863729,0.18448298,41779.0,41778.0,0.52650562]
[1641731864132,0.18448298,41779.0,41778.0,0.72650562]
[1641731864778,0.18448298,41779.0,41778.0,0.70650562]
[1641731865383,0.1840622,41779.0,41778.0,1.02526992]
[1641731865582,0.18448298,41779.0,41778.0,1.02526992]
[1641731866579,0.18448298,41779.0,41778.0,0.96226992]
[1641731867480,0.18448298,41779.0,41778.0,0.76650562]
[1641731868726,0.1840622,41779.0,41778.0,0.70650562]
[1641731868929,0.18448298,41779.0,41778.0,0.70650562]
[1641731869527,0.18448298,41779.0,41778.0,0.76750562]
[1641731869727,0.18448298,41779.0,41778.0,0.56750562]
[1641731869728,0.1840622,41779.0,41778.0,0.56750562]
[1641731870027,0.18448298,41779.0,41778.0,0.56750562]
[1641731870631,0.18448298,41779.0,41778.0,0.50650562]
[1641731870829,0.1840622,41779.0,41778.0,0.50650562]
[1641731871028,0.18448298,41779.0,41778.0,0.60650562]
[1641731871430,0.18448298,41779.0,41778.0,0.63150562]
[1641731872879,0.18448298,41779.0,41778.0,0.60650562]
[1641731873078,0.1840622,41779.0,41778.0,0.60650562]
[1641731873279,0.18448298,41779.0,41778.0,0.60650562]
[1641731873477,0.18448298,41779.0,41778.0,0.62650562]
[1641731874077,0.18448298,41779.0,41778.0,0.72650562]
[1641731874678,0.18448298,41779.0,41778.0,0.70650562]
[1641731875280,0.1840622,41779.0,41778.0,0.70650562]
[1641731875479,0.18448298,41779.0,41778.0,0.73650562]
[1641731876326,0.1840622,41779.0,41778.0,0.73650562]
[1641731876526,0.18448298,41779.0,41778.0,0.73650562]
[1641731876828,0.18448298,41779.0,41778.0,0.50650562]
[1641731877027,0.18448298,41779.0,41778.0,0.55650562]
[1641731877426,0.18448298,41779.0,41778.0,0.20185762]
[1641731877427,0.1840622,41779.0,41778.0,0.20185762]
[1641731877627,0.18448298,41779.0,41778.0,0.20185762]
[1641731877826,0.18448298,41779.0,41778.0,0.15185762]
[1641731878027,0.50871529,41779.0,41778.0,0.15185762]
[1641731878430,0.50871529,41779.0,41778.0,0.03213962]
[1641731878831,0.50871529,41779.0,41778.0,0.00113962]
[1641731879031,0.18448298,41779.0,41778.0,0.00113962]
[1641731879430,0.19448298,41779.0,41778.0,0.02913962]
[1641731879675,0.1940622,41779.0,41778.0,0.02913962]
[1641731879975,0.19448298,41779.0,41778.0,0.08899962]
[1641731880776,0.1840622,41779.0,41778.0,0.06099962]
[1641731880977,0.18448298,41779.0,41778.0,0.11099962]
[1641731881576,0.39554296,41778.0,41777.0,0.11972956]
[1641731881779,0.39554296,41778.0,41775.0,0.059869]
[1641731881978,0.00125041,41773.0,41767.0,0.56164784]
[1641731882177,0.00125041,41773.0,41768.0,0.385648]
[1641731882378,0.00125041,41773.0,41767.0,0.56164784]
[1641731882575,0.00125041,41773.0,41767.0,0.219075]
[1641731882576,0.30158734,41772.0,41767.0,0.219075]
[1641731882978,0.30158734,41772.0,41769.0,0.11974515]
[1641731883180,0.30158734,41772.0,41770.0,0.059873]
[1641731883425,0.00125041,41773.0,41770.0,0.059873]
[1641731883629,0.00042076,41777.0,41770.0,0.059873]
[1641731883827,0.00042076,41777.0,41767.0,0.68139299]
[1641731884025,1.21361827,41778.0,41767.0,0.33882015]
[1641731884228,0.00042078,41777.0,41772.0,0.059871]
[1641731884426,0.29123291,41777.0,41772.0,0.059871]
[1641731885232,0.29081213,41777.0,41772.0,0.059871]
[1641731885429,0.35510792,41777.0,41771.0,0.00078258]
[1641731885828,0.44797792,41777.0,41771.0,0.00078258]
[1641731886231,0.44755713,41777.0,41771.0,0.00078258]
[1641731886530,0.44797791,41777.0,41771.0,0.00078258]
[1641731887380,0.44355713,41777.0,41771.0,0.00078258]
[1641731887580,0.44397791,41777.0,41771.0,0.06065658]
[1641731889183,0.44397791,41777.0,41773.0,0.00095081]
[1641731889583,0.44555713,41777.0,41773.0,0.00095081]
[1641731889784,0.44597792,41777.0,41773.0,0.00095081]
[1641731890484,0.38610292,41777.0,41773.0,0.00095081]
[1641731890684,0.29081213,41777.0,41773.0,0.00095081]
[1641731890942,0.29123292,41777.0,41773.0,0.00095081]
[1641731891143,0.29123292,41777.0,41773.0,0.06081981]
[1641731891446,0.29723292,41777.0,41773.0,0.06081981]
[1641731891842,0.00642079,41777.0,41773.0,0.12068881]
[1641731892041,0.00642079,41777.0,41774.0,0.05986815]
[1641731892742,0.00042079,41777.0,41774.0,0.05986815]
[1641731893546,0.00742079,41777.0,41773.0,0.00095081]
[1641731893946,0.007,41777.0,41773.0,0.00095081]
[1641731894144,0.00742079,41777.0,41776.0,0.00094742]
[1641731894779,0.00042079,41777.0,41776.0,0.00094742]
[1641731894980,0.30042079,41777.0,41776.0,0.00094742]
[1641731895480,0.00542079,41777.0,41776.0,0.00094742]
[1641731896083,0.06529379,41777.0,41776.0,0.00094742]
[1641731896781,0.00042079,41777.0,41776.0,0.00094742]
[1641731897583,0.07864051,41777.0,41776.0,0.00094742]
[1641731898440,0.00642079,41777.0,41776.0,0.00094742]
[1641731898838,0.00042079,41777.0,41776.0,2.7676547]
[1641731899040,0.00042079,41777.0,41776.0,3.1533027]
[1641731899243,0.00042079,41777.0,41776.0,3.39011159]
[1641731899442,0.003,41777.0,41776.0,3.39011159]
[1641731899744,0.003,41777.0,41776.0,3.49011159]
[1641731899745,0.00342079,41777.0,41776.0,3.49011159]
[1641731900543,0.003,41777.0,41776.0,3.49011159]
[1641731900743,0.00042079,41777.0,41776.0,3.49011159]
[1641731900942,0.04554296,41778.0,41777.0,0.059851]
[1641731901145,0.04554296,41778.0,41777.0,0.76549587]
[1641731902886,0.04554296,41778.0,41777.0,1.26549587]
[1641731903287,0.04554296,41778.0,41777.0,0.86549587]
[1641731903487,0.04554296,41778.0,41777.0,0.88849587]
[1641731903687,0.22960516,41778.0,41777.0,0.88849587]
[1641731904086,0.22960516,41778.0,41777.0,0.88944216]
[1641731904689,0.22960516,41778.0,41777.0,0.86644216]
[1641731908234,0.00125872,41781.0,41777.0,0.44644529]
[1641731908434,0.00125872,41781.0,41777.0,0.00094629]
[1641731908435,0.06112672,41781.0,41777.0,0.00094629]
[1641731908632,0.00128254,41779.0,41777.0,0.00094629]
[1641731909233,0.2581647,41778.0,41777.0,0.00094629]
[1641731911482,0.2631647,41778.0,41777.0,0.00094629]
[1641731913528,0.2681647,41778.0,41777.0,0.00094629]
[1641731913829,0.01,41778.0,41777.0,0.00094629]
[1641731914733,0.06028673,41782.0,41777.0,0.00094629]
[1641731914929,0.32713688,41780.0,41777.0,0.00094629]
[1641731915432,0.059869,41779.0,41777.0,0.00094629]
[1641731917481,0.086869,41779.0,41777.0,0.00494629]
[1641731918782,1.059869,41779.0,41777.0,0.00094629]
[1641731919582,1.087869,41779.0,41777.0,0.00394629]
[1641731920584,1.028,41779.0,41777.0,0.00394629]
[1641731921627,1.031,41779.0,41777.0,0.00094629]
[1641731922431,0.45096431,41778.0,41777.0,0.00094629]
[1641731922628,0.05096431,41778.0,41777.0,0.00085167]
[1641731923631,0.37499971,41778.0,41777.0,0.00785167]
[1641731923831,0.62660098,41778.0,41777.0,0.00785167]
[1641731924036,0.7395108,41778.0,41777.0,0.00785167]
[1641731924231,0.7395108,41778.0,41777.0,0.00793682]
[1641731924431,0.40056558,41778.0,41777.0,0.00793682]
[1641731924682,0.90056558,41778.0,41777.0,0.00793682]
[1641731924880,0.88256558,41778.0,41777.0,0.00093682]
[1641731925082,0.38256558,41778.0,41777.0,0.00093682]
[1641731925580,0.39156558,41778.0,41777.0,0.00093682]
[1641731925781,0.31156558,41778.0,41777.0,0.00093682]
[1641731926181,0.68641601,41778.0,41777.0,0.00093682]
[1641731926681,1.50189563,41778.0,41777.0,0.00093682]
[1641731926881,1.49289563,41778.0,41777.0,0.00093682]
[1641731927084,0.67741601,41778.0,41777.0,0.00093682]
[1641731927684,1.50189773,41778.0,41777.0,0.00093682]
[1641731928736,1.49289773,41778.0,41777.0,0.00093682]
[1641731929538,1.50489773,41778.0,41777.0,0.00093682]
[1641731930741,1.49289773,41778.0,41777.0,0.00093682]
[1641731931538,1.50489773,41778.0,41777.0,0.00093682]
[1641731932882,1.49289773,41778.0,41777.0,0.00093682]
[1641731933082,1.49289773,41778.0,41777.0,0.00083388]
[1641731933285,0.67741601,41778.0,41777.0,0.00083388]
[1641731933583,0.68941601,41778.0,41777.0,0.00083388]
[1641731933783,1.68941601,41778.0,41777.0,0.00083388]
[1641731934182,1.68941601,41778.0,41777.0,0.00092653]
[1641731934983,1.67741601,41778.0,41777.0,0.00092653]
[1641731935683,1.68841601,41778.0,41777.0,0.00092653]
[1641731936828,1.67741601,41778.0,41777.0,0.00092653]
[1641731937629,1.68841601,41778.0,41777.0,0.00092653]
[1641731938831,1.42581474,41778.0,41777.0,0.00092653]
[1641731939034,1.05096431,41778.0,41777.0,0.00092653]
[1641731939684,1.06696431,41778.0,41777.0,0.00092653]